fUST/lending_fUST_20260602
["ID","MTS","AMOUNT","RATE_DAILY","PERIOD"]
[423755876,1780390245000,-200.361798,0.0002298,2]
[423755875,1780390245000,-200.361798,0.0002298,2]
[423755882,1780390245000,-151.0,0.0002298,2]
[423755883,1780390245000,-151.0,0.0002298,2]
[423755884,1780390245000,-151.0,0.0002298,2]
[423755885,1780390245000,-151.0,0.0002298,2]
[423755877,1780390245000,-200.361798,0.0002298,2]
[423755878,1780390245000,-200.3618,0.0002298,2]
[423755879,1780390245000,-440.2560124,0.0002298,2]
[423755880,1780390245000,-151.0,0.0002298,2]
[423755899,1780390245000,-151.0,0.0002298,2]
[423755918,1780390245000,-151.0,0.0002298,2]
[423755932,1780390245000,-151.0,0.0002298,2]
[423755916,1780390245000,-151.0,0.0002298,2]
[423755956,1780390245000,-150.07,0.000237,2]
[423755955,1780390245000,-150.52,0.000237,2]
[423755959,1780390245000,-150.52,0.000238,2]
[423755960,1780390245000,-152.0,0.000238,120]
[423755953,1780390245000,-152.0,0.0002349,30]
[423755961,1780390245000,-150.52,0.000239,2]
[423755957,1780390245000,-160.0,0.00023719,11]
[423755958,1780390245000,-161.5911309,0.00023719,5]
[423755963,1780390245000,-162.83209114,0.00023982,2]
[423755926,1780390245000,-151.0,0.0002298,2]
[423755965,1780390245000,-160.0,0.00024,7]
[423755966,1780390245000,-160.0,0.00024,7]
[423755964,1780390245000,-160.0,0.00024,10]
[423755972,1780390245000,-152.0,0.0002449,30]
[423755970,1780390245000,-150.52,0.000243,2]
[423755967,1780390245000,-150.52,0.000241,2]
[423755974,1780390245000,-150.52,0.000246,2]
[423755973,1780390245000,-150.52,0.000245,2]
[423755968,1780390245000,-150.33,0.000241,2]
[423755969,1780390245000,-150.52,0.000242,2]
[423755971,1780390245000,-150.07,0.000243,2]
[423755976,1780390245000,-380.0,0.00024658,2]
[423755978,1780390245000,-152.0,0.000247,120]
[423755977,1780390245000,-150.52,0.000247,2]
[423755980,1780390245000,-150.07,0.000249,2]
[423755983,1780390245000,-150.0,0.00025,2]
[423755979,1780390245000,-150.52,0.000249,2]
[423755981,1780390245000,-152.0,0.0002498,120]
[423755982,1780390245000,-446.0,0.00025,120]
[423755954,1780390245000,-150.52,0.000235,2]
[423755951,1780390245000,-150.52,0.000234,2]
[423755975,1780390245000,-180.72,0.00024622,30]
[423755952,1780390245000,-150.33,0.000234,2]
[423755921,1780390245000,-151.0,0.0002298,2]
[423755919,1780390245000,-151.0,0.0002298,2]
[423755962,1780390245000,-152.0,0.0002398,120]
[423755924,1780390245000,-152.322864,0.0002298,2]
[423755922,1780390245000,-151.0,0.0002298,2]
[423755923,1780390245000,-155.625979,0.0002298,2]
[423755927,1780390245000,-326.2939756,0.0002298,2]
[423755928,1780390245000,-457.079151,0.0002298,2]
[423755930,1780390245000,-194.005561,0.0002298,2]
[423755931,1780390245000,-151.0,0.0002298,2]
[423755940,1780390245000,-150.52,0.00023,2]
[423755929,1780390245000,-151.0,0.0002298,2]
[423755933,1780390245000,-151.0,0.0002298,2]
[423755936,1780390245000,-151.0,0.0002298,2]
[423755920,1780390245000,-151.0,0.0002298,2]
[423755935,1780390245000,-151.0,0.0002298,2]
[423755934,1780390245000,-151.0,0.0002298,2]
[423755950,1780390245000,-150.52,0.000233,2]
[423755949,1780390245000,-160.0,0.00023292,10]
[423755947,1780390245000,-150.07,0.000232,2]
[423755946,1780390245000,-151.0,0.00023124,6]
[423755945,1780390245000,-150.52,0.000231,2]
[423755948,1780390245000,-164.51767079,0.00023272,120]
[423755943,1780390245000,-160.0,0.00023,3]
[423755942,1780390245000,-160.0,0.00023,2]
[423755938,1780390245000,-532.6098,0.00023,2]
[423755939,1780390245000,-290.37334463,0.00023,3]
[423755937,1780390245000,-151.0,0.0002298,2]
[423755944,1780390245000,-160.0,0.00023,3]
[423755941,1780390245000,-160.0,0.00023,10]
[423755992,1780390246000,-250.0,0.00026027,60]
[423755993,1780390246000,-250.0,0.00026027,60]
[423755996,1780390246000,-174.182421,0.00026065,14]
[423755995,1780390246000,-200.099,0.00026027,60]
[423756015,1780390246000,-152.0,0.000284,120]
[423756003,1780390246000,-1000.0,0.00027542,30]
[423756005,1780390246000,-208.71,0.00027864,30]
[423756016,1780390246000,-162.83209114,0.00028441,2]
[423755994,1780390246000,-250.0,0.00026027,60]
[423755999,1780390246000,-152.0,0.0002698,120]
[423755998,1780390246000,-152.0,0.000266,120]
[423755984,1780390246000,-160.0,0.00025,30]
[423756001,1780390246000,-300.0,0.000274,120]
[423756002,1780390246000,-152.0,0.000275,120]
[423755991,1780390246000,-250.0,0.00026027,60]
[423755990,1780390246000,-152.0,0.0002598,120]
[423755989,1780390246000,-152.0,0.000256,120]
[423755985,1780390246000,-1000.0,0.00025038,10]
[423755987,1780390246000,-4358.7959,0.00025444,2]
[423755986,1780390246000,-244.0,0.00025038,10]
[423755988,1780390246000,-162.38306555,0.0002549,30]
[423756004,1780390246000,-492.0,0.00027542,30]
[423755997,1780390246000,-186.21,0.00026101,30]
[423756007,1780390246000,-306.2899,0.00028,2]
[423756010,1780390246000,-325.8778351,0.00028082,2]
[423756009,1780390246000,-999.89728458,0.00028,7]
[423756035,1780390246000,-3316.75,0.0002888,10]
[423756033,1780390246000,-25832.79380768,0.0002888,10]
[423756034,1780390246000,-5530.34486894,0.0002888,10]
[423756031,1780390246000,-1202.22657072,0.0002888,10]
[423756032,1780390246000,-1175.66510949,0.0002888,10]
[423756028,1780390246000,-739.12,0.00024129,2]
[423756030,1780390246000,-396.27900709,0.0002888,10]
[423756029,1780390246000,-56814.45699483,0.0002888,10]
[423756027,1780390246000,-369.55,0.0002298,2]
[423756026,1780390246000,-153.327748,0.00021918,2]
[423756023,1780390246000,-3165.5585741,0.0001516,2]
[423756025,1780390246000,-151.0,0.00021918,2]
[423756021,1780390246000,-3698.3,0.0002888,10]
[423756014,1780390246000,-1000.0,0.000284,120]
[423756013,1780390246000,-326.2939756,0.00028082,2]
[423756024,1780390246000,-355.60719783,0.000185,2]
[423756011,1780390246000,-326.2939756,0.00028082,2]
[423756008,1780390246000,-474.32,0.00028,2]
[423756036,1780390246000,-405.18115414,0.0002888,10]
[423756017,1780390246000,-600.0,0.000285,14]
[423756018,1780390246000,-108512.11477386,0.0002888,10]
[423756020,1780390246000,-3991.7298555,0.0002888,10]
[423756012,1780390246000,-457.0791509,0.00028082,2]
[423756006,1780390246000,-152.0,0.0002798,120]
[423756076,1780390247000,-21384.7468183,0.0002888,10]
[423756072,1780390247000,-275.26,0.00026614,30]
[423756074,1780390247000,-31448.9087598,0.0002888,10]
[423756118,1780390898000,1523.41225316,0.00022979,120]
[423756120,1780390910000,-5000.0,0.0001245,2]
[423756121,1780390927000,-3607.63547272,0.00012576,2]
[423756124,1780390944000,-1828.26517168,0.0001245,2]
[423756125,1780390961000,-1392.36452728,0.00012576,2]
[423756127,1780390978000,-500.0,0.00012703,2]
[423756130,1780391157000,1352.71096933,0.00021586,120]
[423756270,1780391440000,-1050.0,0.00014423,2]
[423756277,1780391440000,-1050.0,0.00014423,2]
[423756275,1780391440000,-1050.0,0.00014423,2]
[423756274,1780391440000,-1050.0,0.00014423,2]
[423756276,1780391440000,-1050.0,0.00014423,2]
[423756283,1780391440000,-1050.0,0.00014423,2]
[423756282,1780391440000,-1050.0,0.00014423,2]
[423756281,1780391440000,-1050.0,0.00014423,2]
[423756280,1780391440000,-1050.0,0.00014423,2]
[423756278,1780391440000,-1050.0,0.00014423,2]
[423756279,1780391440000,-1050.0,0.00014423,2]
[423756284,1780391440000,-1050.0,0.00014423,2]
[423756287,1780391440000,-500.0,0.00014493,2]
[423756286,1780391440000,-1066.35713712,0.00014423,2]
[423756290,1780391440000,-500.0,0.00014493,2]
[423756288,1780391440000,-500.0,0.00014493,2]
[423756294,1780391440000,-500.0,0.00014493,2]
[423756292,1780391440000,-500.0,0.00014493,2]
[423756289,1780391440000,-500.0,0.00014493,2]
[423756291,1780391440000,-513.43,0.00014493,2]
[423756293,1780391440000,-500.0,0.00014493,2]
[423756296,1780391440000,-500.0,0.00014493,2]
[423756272,1780391440000,-1050.0,0.00014423,2]
[423756295,1780391440000,-500.0,0.00014493,2]
[423756271,1780391440000,-1050.0,0.00014423,2]
[423756248,1780391440000,-5000.0,0.00012703,2]
[423756266,1780391440000,-1050.0,0.00014423,2]
[423756246,1780391440000,-5000.0,0.00012576,2]
[423756250,1780391440000,-300.0,0.00013088,2]
[423756251,1780391440000,-300.0,0.00013088,2]
[423756252,1780391440000,-3117.4014892,0.00013092,2]
[423756253,1780391440000,-172.9163478,0.00013092,2]
[423756247,1780391440000,-1200.0,0.00012702,2]
[423756254,1780391440000,-1440.7069712,0.00013496,2]
[423756249,1780391440000,-300.0,0.00013088,2]
[423756305,1780391440000,-500.0,0.00014493,2]
[423756255,1780391440000,-1186.78411495,0.00014175,2]
[423756256,1780391440000,-169.395318,0.00014354,2]
[423756258,1780391440000,-500.0,0.00014422,2]
[423756268,1780391440000,-1050.0,0.00014423,2]
[423756260,1780391440000,-500.0,0.00014423,2]
[423756259,1780391440000,-500.0,0.00014423,2]
[423756261,1780391440000,-1050.0,0.00014423,2]
[423756269,1780391440000,-1050.0,0.00014423,2]
[423756257,1780391440000,-500.0,0.00014422,2]
[423756262,1780391440000,-500.0,0.00014423,2]
[423756265,1780391440000,-1050.0,0.00014423,2]
[423756267,1780391440000,-1050.0,0.00014423,2]
[423756264,1780391440000,-326.54910118,0.00014423,2]
[423756263,1780391440000,-1050.0,0.00014423,2]
[423756273,1780391440000,-1050.0,0.00014423,2]
[423756306,1780391440000,-151.62656856,0.00014493,2]
[423756285,1780391440000,-1050.0,0.00014423,2]
[423756297,1780391440000,-500.0,0.00014493,2]
[423756327,1780391440000,-500.0,0.00014767,2]
[423756331,1780391440000,-500.0,0.00014767,2]
[423756334,1780391440000,-500.0,0.00014767,2]
[423756330,1780391440000,-500.0,0.00014767,2]
[423756325,1780391440000,-608.31339903,0.00014724,2]
[423756326,1780391440000,-216.73476898,0.00014724,2]
[423756335,1780391440000,-500.0,0.00014767,2]
[423756336,1780391440000,-500.0,0.00014767,2]
[423756337,1780391440000,-500.0,0.00014767,2]
[423756339,1780391440000,-500.79255613,0.00014767,2]
[423756342,1780391440000,-500.0,0.00014767,2]
[423756332,1780391440000,-500.0,0.00014767,2]
[423756344,1780391440000,-431.83166051,0.00014767,2]
[423756338,1780391440000,-500.0,0.00014767,2]
[423756340,1780391440000,-500.0,0.00014767,2]
[423756346,1780391440000,-500.0,0.00014767,2]
[423756341,1780391440000,-500.0,0.00014767,2]
[423756345,1780391440000,-563.48517767,0.00014767,2]
[423756348,1780391440000,-426.64599366,0.00014767,2]
[423756350,1780391440000,-500.0,0.00014767,2]
[423756349,1780391440000,-503.10818104,0.00014767,2]
[423756351,1780391440000,-500.0,0.00014767,2]
[423756308,1780391440000,-500.0,0.00014493,2]
[423756352,1780391440000,-500.0,0.00014767,2]
[423756343,1780391440000,-68.16833949,0.00014767,2]
[423756329,1780391440000,-500.0,0.00014767,2]
[423756347,1780391440000,-500.0,0.00014767,2]
[423756328,1780391440000,-500.0,0.00014767,2]
[423756300,1780391440000,-500.0,0.00014493,2]
[423756301,1780391440000,-500.0,0.00014493,2]
[423756333,1780391440000,-500.0,0.00014767,2]
[423756304,1780391440000,-500.0,0.00014493,2]
[423756302,1780391440000,-500.0,0.00014493,2]
[423756299,1780391440000,-500.0,0.00014493,2]
[423756307,1780391440000,-500.0,0.00014493,2]
[423756298,1780391440000,-584.58,0.00014493,2]
[423756319,1780391440000,-84973.62410103,0.0001467,2]
[423756309,1780391440000,-573.2,0.00014493,2]
[423756310,1780391440000,-500.0,0.00014493,2]
[423756321,1780391440000,-600.0,0.0001471,2]
[423756303,1780391440000,-500.0,0.00014493,2]
[423756312,1780391440000,-500.0,0.00014493,2]
[423756320,1780391440000,-160.0,0.00014695,2]
[423756311,1780391440000,-500.0,0.00014493,2]
[423756313,1780391440000,-500.0,0.00014493,2]
[423756317,1780391440000,-500.0,0.000146,2]
[423756324,1780391440000,-151.5,0.00014724,2]
[423756322,1780391440000,-151.5,0.00014724,2]
[423756314,1780391440000,-500.0,0.00014493,2]
[423756323,1780391440000,-500.0,0.00014724,2]
[423756315,1780391440000,-501.25392851,0.00014494,2]
[423756318,1780391440000,-273.68023698,0.00014669,2]
[423756316,1780391440000,-228.58886623,0.00014495,2]
[423756395,1780391441000,-500.0,0.00014769,2]
[423756402,1780391441000,-500.0,0.00014769,2]
[423756407,1780391441000,-500.0,0.00014769,2]
[423756401,1780391441000,-500.0,0.00014769,2]
[423756410,1780391441000,-500.0,0.00014769,2]
[423756409,1780391441000,-500.0,0.00014769,2]
[423756397,1780391441000,-500.0,0.00014769,2]
[423756392,1780391441000,-500.0,0.00014768,2]
[423756393,1780391441000,-500.0,0.00014769,2]
[423756399,1780391441000,-500.0,0.00014769,2]
[423756406,1780391441000,-500.0,0.00014769,2]
[423756408,1780391441000,-500.0,0.00014769,2]
[423756404,1780391441000,-500.0,0.00014769,2]
[423756422,1780391441000,-500.0,0.00014769,2]
[423756412,1780391441000,-500.0,0.00014769,2]
[423756419,1780391441000,-500.0,0.00014769,2]
[423756417,1780391441000,-500.0,0.00014769,2]
[423756414,1780391441000,-500.0,0.00014769,2]
[423756413,1780391441000,-500.0,0.00014769,2]
[423756423,1780391441000,-500.0,0.00014769,2]
[423756415,1780391441000,-514.9537919,0.00014769,2]
[423756418,1780391441000,-500.0,0.00014769,2]
[423756421,1780391441000,-500.0,0.00014769,2]
[423756420,1780391441000,-500.0,0.00014769,2]
[423756416,1780391441000,-500.0,0.00014769,2]
[423756425,1780391441000,-500.0,0.00014769,2]
[423756435,1780391441000,-500.0,0.00014769,2]
[423756390,1780391441000,-500.0,0.00014768,2]
[423756411,1780391441000,-501.3032318,0.00014769,2]
[423756386,1780391441000,-500.0,0.00014768,2]
[423756353,1780391441000,-500.0,0.00014767,2]
[423756385,1780391441000,-639.8865092,0.00014768,2]
[423756436,1780391441000,-500.0,0.00014769,2]
[423756359,1780391441000,-300.0,0.00014767,2]
[423756358,1780391441000,-519.99,0.00014767,2]
[423756360,1780391441000,-233.01,0.00014767,2]
[423756361,1780391441000,-500.0,0.00014767,2]
[423756354,1780391441000,-357.27614465,0.00014767,2]
[423756357,1780391441000,-500.0,0.00014767,2]
[423756356,1780391441000,-500.0,0.00014767,2]
[423756355,1780391441000,-142.72385535,0.00014767,2]
[423756362,1780391441000,-500.0,0.00014767,2]
[423756363,1780391441000,-500.0,0.00014767,2]
[423756364,1780391441000,-500.0,0.00014768,2]
[423756366,1780391441000,-500.0,0.00014768,2]
[423756388,1780391441000,-500.0,0.00014768,2]
[423756365,1780391441000,-500.0,0.00014768,2]
[423756368,1780391441000,-500.0,0.00014768,2]
[423756370,1780391441000,-500.0,0.00014768,2]
[423756369,1780391441000,-500.0,0.00014768,2]
[423756372,1780391441000,-500.0,0.00014768,2]
[423756371,1780391441000,-500.0,0.00014768,2]
[423756373,1780391441000,-500.0,0.00014768,2]
[423756374,1780391441000,-500.0,0.00014768,2]
[423756383,1780391441000,-251.5757797,0.00014768,2]
[423756375,1780391441000,-500.0,0.00014768,2]
[423756381,1780391441000,-500.0,0.00014768,2]
[423756378,1780391441000,-500.0,0.00014768,2]
[423756380,1780391441000,-500.0,0.00014768,2]
[423756377,1780391441000,-500.0,0.00014768,2]
[423756367,1780391441000,-500.0,0.00014768,2]
[423756424,1780391441000,-500.0,0.00014769,2]
[423756470,1780391441000,-500.32393438,0.00014769,2]
[423756427,1780391441000,-500.0,0.00014769,2]
[423756452,1780391441000,-500.0,0.00014769,2]
[423756462,1780391441000,-500.0,0.00014769,2]
[423756466,1780391441000,-500.0,0.00014769,2]
[423756467,1780391441000,-536.76373076,0.00014769,2]
[423756465,1780391441000,-500.0,0.00014769,2]
[423756472,1780391441000,-500.40491185,0.00014769,2]
[423756468,1780391441000,-500.0,0.00014769,2]
[423756469,1780391441000,-500.0,0.00014769,2]
[423756473,1780391441000,-500.0,0.00014769,2]
[423756471,1780391441000,-500.0,0.00014769,2]
[423756474,1780391441000,-500.0,0.00014769,2]
[423756476,1780391441000,-237.23028835,0.00014769,2]
[423756486,1780391441000,-556.49410635,0.00014769,2]
[423756464,1780391441000,-500.0,0.00014769,2]
[423756477,1780391441000,-500.0,0.00014769,2]
[423756478,1780391441000,-501.00237161,0.00014769,2]
[423756488,1780391441000,-500.81511868,0.00014769,2]
[423756485,1780391441000,-500.0,0.00014769,2]
[423756480,1780391441000,-500.0,0.00014769,2]
[423756481,1780391441000,-500.0,0.00014769,2]
[423756484,1780391441000,-283.66407462,0.00014769,2]
[423756479,1780391441000,-500.0,0.00014769,2]
[423756483,1780391441000,-500.0,0.00014769,2]
[423756482,1780391441000,-500.0,0.00014769,2]
[423756490,1780391441000,-500.0,0.00014769,2]
[423756489,1780391441000,-500.0,0.00014769,2]
[423756491,1780391441000,-500.0,0.00014769,2]
[423756428,1780391441000,-500.0,0.00014769,2]
[423756487,1780391441000,-500.0,0.00014769,2]
[423756463,1780391441000,-500.0,0.00014769,2]
[423756475,1780391441000,-555.43,0.00014769,2]
[423756461,1780391441000,-500.0,0.00014769,2]
[423756426,1780391441000,-500.0,0.00014769,2]
[423756457,1780391441000,-500.0,0.00014769,2]
[423756429,1780391441000,-500.0,0.00014769,2]
[423756432,1780391441000,-501.51344895,0.00014769,2]
[423756433,1780391441000,-500.0,0.00014769,2]
[423756434,1780391441000,-613.217805,0.00014769,2]
[423756431,1780391441000,-500.0,0.00014769,2]
[423756430,1780391441000,-500.0,0.00014769,2]
[423756437,1780391441000,-500.0,0.00014769,2]
[423756440,1780391441000,-500.0,0.00014769,2]
[423756441,1780391441000,-500.0,0.00014769,2]
[423756438,1780391441000,-500.0,0.00014769,2]
[423756449,1780391441000,-500.0,0.00014769,2]
[423756442,1780391441000,-500.0,0.00014769,2]
[423756446,1780391441000,-500.0,0.00014769,2]
[423756439,1780391441000,-500.0,0.00014769,2]
[423756455,1780391441000,-500.0,0.00014769,2]
[423756460,1780391441000,-500.0,0.00014769,2]
[423756447,1780391441000,-500.0,0.00014769,2]
[423756458,1780391441000,-500.7929722,0.00014769,2]
[423756459,1780391441000,-500.8597431,0.00014769,2]
[423756456,1780391441000,-500.0,0.00014769,2]
[423756453,1780391441000,-500.0,0.00014769,2]
[423756454,1780391441000,-500.0,0.00014769,2]
[423756450,1780391441000,-500.0,0.00014769,2]
[423756445,1780391441000,-500.79512591,0.00014769,2]
[423756448,1780391441000,-500.0,0.00014769,2]
[423756443,1780391441000,-501.3529458,0.00014769,2]
[423756444,1780391441000,-500.82702196,0.00014769,2]
[423756451,1780391441000,-500.0,0.00014769,2]
[423756538,1780391442000,-500.0,0.00014769,2]
[423756537,1780391442000,-500.0,0.00014769,2]
[423756536,1780391442000,-500.0,0.00014769,2]
[423756530,1780391442000,-382.68729166,0.00014769,2]
[423756534,1780391442000,-500.0,0.00014769,2]
[423756533,1780391442000,-500.0,0.00014769,2]
[423756526,1780391442000,-500.0,0.00014769,2]
[423756531,1780391442000,-500.0,0.00014769,2]
[423756529,1780391442000,-229.63635495,0.00014769,2]
[423756523,1780391442000,-500.0,0.00014769,2]
[423756524,1780391442000,-500.0,0.00014769,2]
[423756549,1780391442000,-500.0,0.00014769,2]
[423756532,1780391442000,-500.0,0.00014769,2]
[423756539,1780391442000,-500.0,0.00014769,2]
[423756551,1780391442000,-500.0,0.00014769,2]
[423756541,1780391442000,-500.0,0.00014769,2]
[423756540,1780391442000,-300.35426071,0.00014769,2]
[423756543,1780391442000,-500.0,0.00014769,2]
[423756542,1780391442000,-500.0,0.00014769,2]
[423756553,1780391442000,-500.0,0.00014769,2]
[423756544,1780391442000,-500.0,0.00014769,2]
[423756554,1780391442000,-500.0,0.00014769,2]
[423756545,1780391442000,-500.0,0.00014769,2]
[423756550,1780391442000,-302.1530571,0.00014769,2]
[423756547,1780391442000,-500.0,0.00014769,2]
[423756552,1780391442000,-500.0,0.00014769,2]
[423756546,1780391442000,-500.0,0.00014769,2]
[423756548,1780391442000,-500.88,0.00014769,2]
[423756519,1780391442000,-500.0,0.00014769,2]
[423756535,1780391442000,-364.08951944,0.00014769,2]
[423756522,1780391442000,-500.0,0.00014769,2]
[423756499,1780391442000,-500.0,0.00014769,2]
[423756525,1780391442000,-501.04703792,0.00014769,2]
[423756500,1780391442000,-500.0,0.00014769,2]
[423756501,1780391442000,-500.0,0.00014769,2]
[423756494,1780391442000,-500.0,0.00014769,2]
[423756497,1780391442000,-500.0,0.00014769,2]
[423756495,1780391442000,-500.0,0.00014769,2]
[423756496,1780391442000,-500.0,0.00014769,2]
[423756492,1780391442000,-500.0,0.00014769,2]
[423756498,1780391442000,-500.0,0.00014769,2]
[423756493,1780391442000,-500.0,0.00014769,2]
[423756502,1780391442000,-1000.0,0.00014769,2]
[423756504,1780391442000,-500.0,0.00014769,2]
[423756503,1780391442000,-500.0,0.00014769,2]
[423756506,1780391442000,-500.0,0.00014769,2]
[423756512,1780391442000,-500.0,0.00014769,2]
[423756514,1780391442000,-500.67384736,0.00014769,2]
[423756513,1780391442000,-500.0,0.00014769,2]
[423756505,1780391442000,-500.0,0.00014769,2]
[423756507,1780391442000,-500.0,0.00014769,2]
[423756509,1780391442000,-500.0,0.00014769,2]
[423756508,1780391442000,-500.0,0.00014769,2]
[423756515,1780391442000,-500.0,0.00014769,2]
[423756511,1780391442000,-500.0,0.00014769,2]
[423756510,1780391442000,-500.0,0.00014769,2]
[423756517,1780391442000,-500.0,0.00014769,2]
[423756516,1780391442000,-500.0,0.00014769,2]
[423756527,1780391442000,-500.0,0.00014769,2]
[423756520,1780391442000,-299.79556096,0.00014769,2]
[423756518,1780391442000,-500.0,0.00014769,2]
[423756521,1780391442000,-500.0,0.00014769,2]
[423756528,1780391442000,-500.0,0.00014769,2]
[423756555,1780391442000,-500.0,0.00014769,2]
[423756572,1780391442000,-500.0,0.00014769,2]
[423756565,1780391442000,-501.95598454,0.00014769,2]
[423756593,1780391442000,-500.0,0.00014769,2]
[423756591,1780391442000,-557.43944691,0.00014769,2]
[423756592,1780391442000,-500.0,0.00014769,2]
[423756596,1780391442000,-501.04225385,0.00014998,2]
[423756595,1780391442000,-500.0,0.0001477,2]
[423756607,1780391442000,-500.0,0.00014998,2]
[423756599,1780391442000,-500.0,0.00014998,2]
[423756598,1780391442000,-500.0,0.00014998,2]
[423756600,1780391442000,-500.0,0.00014998,2]
[423756606,1780391442000,-500.0,0.00014998,2]
[423756601,1780391442000,-600.02838762,0.00014998,2]
[423756603,1780391442000,-500.0,0.00014998,2]
[423756597,1780391442000,-500.0,0.00014998,2]
[423756604,1780391442000,-500.0,0.00014998,2]
[423756602,1780391442000,-500.0,0.00014998,2]
[423756605,1780391442000,-500.0,0.00014998,2]
[423756608,1780391442000,-500.0,0.00014998,2]
[423756610,1780391442000,-500.0,0.00014999,2]
[423756615,1780391442000,-500.0,0.00014999,2]
[423756614,1780391442000,-500.0,0.00014999,2]
[423756617,1780391442000,-500.0,0.00014999,2]
[423756613,1780391442000,-500.0,0.00014999,2]
[423756618,1780391442000,-500.0,0.00014999,2]
[423756611,1780391442000,-500.0,0.00014999,2]
[423756612,1780391442000,-500.0,0.00014999,2]
[423756619,1780391442000,-500.0,0.00014999,2]
[423756616,1780391442000,-500.0,0.00014999,2]
[423756620,1780391442000,-500.0,0.00014999,2]
[423756566,1780391442000,-500.0,0.00014769,2]
[423756594,1780391442000,-500.0,0.00014769,2]
[423756589,1780391442000,-155.2700312,0.00014769,2]
[423756609,1780391442000,-500.0,0.00014999,2]
[423756583,1780391442000,-641.35840664,0.00014769,2]
[423756587,1780391442000,-500.0,0.00014769,2]
[423756567,1780391442000,-500.0,0.00014769,2]
[423756556,1780391442000,-500.0,0.00014769,2]
[423756559,1780391442000,-500.0,0.00014769,2]
[423756563,1780391442000,-500.0,0.00014769,2]
[423756564,1780391442000,-500.0,0.00014769,2]
[423756558,1780391442000,-500.0,0.00014769,2]
[423756561,1780391442000,-506.27266996,0.00014769,2]
[423756560,1780391442000,-586.02,0.00014769,2]
[423756557,1780391442000,-500.0,0.00014769,2]
[423756568,1780391442000,-500.0,0.00014769,2]
[423756570,1780391442000,-2758.2416,0.00014769,2]
[423756579,1780391442000,-500.0,0.00014769,2]
[423756569,1780391442000,-500.0,0.00014769,2]
[423756562,1780391442000,-500.0,0.00014769,2]
[423756580,1780391442000,-500.0,0.00014769,2]
[423756585,1780391442000,-500.0,0.00014769,2]
[423756586,1780391442000,-501.61993674,0.00014769,2]
[423756588,1780391442000,-500.0,0.00014769,2]
[423756590,1780391442000,-500.0,0.00014769,2]
[423756571,1780391442000,-2758.2416,0.00014769,2]
[423756582,1780391442000,-262.87253778,0.00014769,2]
[423756584,1780391442000,-607.36733798,0.00014769,2]
[423756578,1780391442000,-500.0,0.00014769,2]
[423756577,1780391442000,-500.0,0.00014769,2]
[423756574,1780391442000,-500.0,0.00014769,2]
[423756576,1780391442000,-500.0,0.00014769,2]
[423756573,1780391442000,-432.1979072,0.00014769,2]
[423756575,1780391442000,-500.0,0.00014769,2]
[423756581,1780391442000,-500.0,0.00014769,2]
[423756668,1780391443000,-500.0,0.00015042,2]